fUST/lending_fUST_20260117
["ID","MTS","AMOUNT","RATE_DAILY","PERIOD"]
[402193019,1768583438797,-162.489039,0.00020862,2]
[402193020,1768583438806,-3550.86697989,0.0002089,30]
[402193023,1768583438815,-1198.53225066,0.0002089,2]
[402193024,1768583438825,-292714.97536184,0.00020978,2]
[402193062,1768583443764,-17376.99360651,0.00020978,2]
[402193103,1768583446972,-800.0,0.00020978,2]
[402193104,1768583446984,-1528.83968853,0.00020978,2]
[402193123,1768583708967,2678.0,8.93e-05,2]
[402193320,1768584631837,-151.0,0.00013265,2]
[402193321,1768584631848,-151.0,0.00013265,2]
[402193322,1768584631859,-151.0,0.00013265,2]
[402193323,1768584631869,-147.0,0.00013265,2]
[402193324,1768584631890,-4.0,0.00013265,2]
[402193325,1768584631900,-151.0,0.00013265,2]
[402193326,1768584631910,-151.0,0.00013265,2]
[402193327,1768584631920,-151.0,0.00013265,2]
[402193328,1768584631931,-151.85763944,0.00013265,2]
[402193329,1768584631941,-151.0,0.00013265,2]
[402193330,1768584631951,-151.0,0.00013265,2]
[402193331,1768584631961,-151.0,0.00013265,2]
[402193332,1768584631971,-151.0,0.00013265,2]
[402193333,1768584631981,-151.0,0.00013265,2]
[402193334,1768584631991,-151.0,0.00013265,2]
[402193335,1768584632001,-151.0,0.00013265,2]
[402193336,1768584632011,-286.23816441,0.00013265,2]
[402193337,1768584632021,-608.0,0.00013271,2]
[402193338,1768584632031,-1200.0,0.00013271,2]
[402193339,1768584632043,-223.87603407,0.00013272,2]
[402193340,1768584632054,-300.0,0.00013272,2]
[402193341,1768584632064,-300.0,0.00013272,2]
[402193342,1768584632075,-300.0,0.00013272,2]
[402193343,1768584632085,-300.0,0.00013272,2]
[402193344,1768584632096,-300.0,0.00013272,2]
[402193345,1768584632107,-500.0,0.00013273,2]
[402193346,1768584632118,-500.0,0.00013273,2]
[402193347,1768584632128,-500.0,0.00013273,2]
[402193348,1768584632139,-500.0,0.00013273,2]
[402193349,1768584632148,-500.0,0.00013273,2]
[402193350,1768584632158,-500.0,0.00013273,2]
[402193351,1768584632168,-500.0,0.00013273,2]
[402193352,1768584632178,-500.0,0.00013273,2]
[402193353,1768584632188,-159.65287791,0.00013273,2]
[402193354,1768584632199,-506.9688385,0.00013273,2]
[402193355,1768584632209,-500.0,0.00013273,2]
[402193356,1768584632219,-500.0,0.00013273,2]
[402193357,1768584632230,-500.0,0.00013273,2]
[402193358,1768584632240,-50000.0,0.00013273,2]
[402193359,1768584632251,-500.0,0.00013273,2]
[402193360,1768584632261,-500.0,0.00013273,2]
[402193361,1768584632271,-500.0,0.00013273,2]
[402193362,1768584632281,-500.0,0.00013273,2]
[402193363,1768584632291,-500.0,0.00013273,2]
[402193364,1768584632301,-500.0,0.00013273,2]
[402193365,1768584632311,-500.0,0.00013273,2]
[402193366,1768584632322,-300.0,0.00013673,2]
[402193367,1768584632332,-1321.2655534,0.00013699,2]
[402193368,1768584632342,-500.0,0.00013699,2]
[402193369,1768584632353,-500.0,0.00013699,2]
[402193370,1768584632363,-422.94168027,0.00013699,2]
[402193371,1768584632374,-500.0,0.00013699,2]
[402193372,1768584632384,-500.0,0.00013699,2]
[402193373,1768584632395,-500.0,0.00013699,2]
[402193374,1768584632405,-500.0,0.00013699,2]
[402193375,1768584632415,-500.0,0.00013699,2]
[402193376,1768584632425,-500.0,0.00013699,2]
[402193377,1768584632436,-500.0,0.00013699,2]
[402193378,1768584632447,-500.0,0.00013699,2]
[402193379,1768584632457,-500.0,0.00013699,2]
[402193380,1768584632467,-500.0,0.00013699,2]
[402193381,1768584632477,-265.0,0.00013819,2]
[402193382,1768584632487,-394.0529296,0.00013819,2]
[402193383,1768584632497,-500.0,0.00013819,2]
[402193384,1768584632513,-500.0,0.00013819,2]
[402193385,1768584632525,-500.0,0.00013819,2]
[402193386,1768584632534,-500.0,0.00013819,2]
[402193387,1768584632544,-500.0,0.00013819,2]
[402193388,1768584632556,-500.0,0.00013819,2]
[402193389,1768584632566,-242.0,0.00013819,2]
[402193390,1768584632576,-203.80946265,0.00013819,2]
[402193391,1768584632586,-500.0,0.00013821,2]
[402193392,1768584632596,-1000.0,0.00013821,2]
[402193393,1768584632606,-1000.0,0.00013821,2]
[402193394,1768584632616,-1000.0,0.00013821,2]
[402193395,1768584632626,-1000.0,0.00013821,2]
[402193396,1768584632635,-1000.0,0.00013821,2]
[402193397,1768584632645,-1000.0,0.00013821,2]
[402193398,1768584632655,-505.48440654,0.00013821,2]
[402193399,1768584632665,-1000.0,0.00013821,2]
[402193400,1768584632675,-1000.0,0.00013821,2]
[402193401,1768584632684,-1015.82547117,0.00013821,2]
[402193402,1768584632694,-169.91648145,0.00013821,2]
[402193403,1768584632704,-1000.0,0.00013821,2]
[402193404,1768584632714,-1000.0,0.00013821,2]
[402193405,1768584632725,-1000.0,0.00013821,2]
[402193406,1768584632735,-1008.18367397,0.00013821,2]
[402193407,1768584632745,-1000.0,0.00013821,2]
[402193408,1768584632755,-1009.83681907,0.00013821,2]
[402193409,1768584632764,-1000.0,0.00013821,2]
[402193410,1768584632774,-500.0,0.00014095,2]
[402193411,1768584632783,-600.0,0.00014221,2]
[402193412,1768584632793,-1000.0,0.00014247,2]
[402193413,1768584632803,-1000.0,0.00014247,2]
[402193414,1768584632812,-1000.0,0.00014247,2]
[402193415,1768584632823,-1000.49467195,0.00014247,2]
[402193416,1768584632832,-339.50320144,0.00014247,2]
[402193417,1768584632845,-660.49679856,0.00014247,2]
[402193418,1768584632855,-181.10660214,0.00014247,2]
[402193419,1768584632874,-818.89339786,0.00014247,2]
[402193420,1768584632883,-155.35549971,0.00014247,2]
[402193421,1768584632893,-436.47618632,0.00014247,2]
[402193429,1768584638054,-563.52381368,0.00014247,2]
[402193430,1768584638064,-1000.0,0.00014247,2]
[402193431,1768584638073,-1000.0,0.00014247,2]
[402193432,1768584638083,-250.52997418,0.00014247,2]
[402193433,1768584638092,-1500.85139614,0.00014368,2]
[402193434,1768584638103,-1000.0,0.00014368,2]
[402193435,1768584638113,-538.7310074,0.00014368,2]
[402193436,1768584638122,-1500.0,0.00014368,2]
[402193437,1768584638131,-1500.0,0.00014368,2]
[402193438,1768584638141,-453.71259255,0.00014368,2]
[402193439,1768584638151,-500.0,0.00014368,2]
[402193440,1768584638160,-420.0,0.00014551,2]
[402193441,1768584638169,-420.0,0.00014551,2]
[402193442,1768584638179,-1680.0,0.00014598,2]
[402193443,1768584638188,-264.17372021,0.00015272,2]
[402193444,1768584638198,-587.0,0.00015953,2]
[402193445,1768584638207,-243.0,0.00015953,2]
[402193446,1768584638216,-2351.0,0.00016058,2]
[402193447,1768584638226,-187.76,0.0001644,2]
[402193448,1768584638236,-11579.127755,0.00017116,2]
[402193449,1768584638245,-304.47140634,0.00017272,2]
[402193450,1768584638255,-3292.0,0.00017664,2]
[402193451,1768584638264,-995.28900003,0.00017817,2]
[402193452,1768584638274,-3981.15600013,0.00017817,2]
[402193453,1768584638284,-3550.86697993,0.00018101,30]
[402193454,1768584638294,-3550.86697989,0.0001812,30]
[402193455,1768584638303,-3550.86697989,0.00018139,30]
[402193456,1768584638313,-250.0,0.00018155,2]
[402193457,1768584638322,-3550.86697989,0.00018158,30]
[402193458,1768584638332,-3550.86697989,0.00018177,30]
[402193459,1768584638341,-797.12,0.00018186,3]
[402193460,1768584638350,-502.82609084,0.00018195,2]
[402193461,1768584638359,-3550.86697989,0.00018196,30]
[402193462,1768584638368,-1041.66666667,0.00018204,2]
[402193463,1768584638377,-161.49421504,0.00018264,2]
[402193464,1768584638386,-1134.39338546,0.00018267,2]
[402193465,1768584638395,-265.7,0.00018292,3]
[402193466,1768584638405,-405.93469259,0.00018301,2]
[402193467,1768584638414,-246.72242245,0.00018301,2]
[402193468,1768584638424,-228.5037798,0.00018301,2]
[402193469,1768584638433,-570.06,0.00018401,2]
[402193470,1768584638442,-570.06,0.00018401,2]
[402193471,1768584638452,-2339.51461419,0.00018518,2]
[402193472,1768584638461,-1134.39338545,0.00018775,2]
[402193473,1768584638470,-199.27233311,0.00019178,2]
[402193474,1768584638479,-1077.62458,0.00019178,2]
[402193475,1768584638488,-1077.62458,0.00019178,2]
[402193476,1768584638497,-1077.62458,0.00019178,2]
[402193477,1768584638508,-1077.62458,0.00019178,2]
[402193478,1768584638523,-1077.62458,0.00019178,2]
[402193479,1768584638533,-1077.62458,0.00019178,2]
[402193480,1768584638542,-1077.62458,0.00019178,2]
[402193481,1768584638552,-1077.62458,0.00019178,2]
[402193482,1768584638562,-2689.69,0.000192,2]
[402193483,1768584638571,-151.61,0.000192,2]
[402193484,1768584638581,-17899.61,0.000192,2]
[402193485,1768584638592,-243.0,0.00019238,120]
[402193486,1768584638601,-162.0,0.00019238,120]
[402193487,1768584638610,-728.0,0.00019243,2]
[402193488,1768584638619,-344.76909247,0.00019272,2]
[402193489,1768584638628,-1134.39338545,0.00019283,2]
[402193490,1768584638638,-151.0,0.00019312,2]
[402193491,1768584638647,-151.0,0.00019312,2]
[402193492,1768584638657,-151.0,0.00019312,2]
[402193493,1768584638667,-151.0,0.00019312,2]
[402193494,1768584638676,-151.0,0.00019312,2]
[402193495,1768584638686,-151.0,0.00019312,2]
[402193496,1768584638695,-151.0,0.00019312,2]
[402193497,1768584638705,-151.0,0.00019312,2]
[402193498,1768584638715,-151.0,0.00019312,2]
[402193499,1768584638725,-151.0,0.00019312,2]
[402193500,1768584638735,-151.0,0.00019312,2]
[402193501,1768584638744,-151.0,0.00019312,2]
[402193502,1768584638754,-151.0,0.00019312,2]
[402193503,1768584638763,-151.0,0.00019312,2]
[402193504,1768584638772,-151.0,0.00019312,2]
[402193505,1768584638781,-151.0,0.00019312,2]
[402193506,1768584638791,-151.0,0.00019312,2]
[402193507,1768584638801,-2150.738,0.00019312,2]
[402193508,1768584638810,-1957.856,0.00019312,2]
[402193509,1768584638819,-570.06,0.00019344,2]
[402193510,1768584638829,-2030.296672,0.00019367,2]
[402193511,1768584638839,-2105.41764886,0.00019422,2]
[402193512,1768584638848,-2183.31810187,0.00019477,2]
[402193513,1768584638858,-868.5027432,0.00019532,2]
[402193514,1768584638867,-531.4,0.00019662,3]
[402193515,1768584638877,-1134.39338545,0.0001979,2]
[402193516,1768584638886,-2230.315306,0.0001986,2]
[402193517,1768584638896,-1000.0,0.00019874,2]
[402193518,1768584638905,-570.06,0.00019989,2]
[402193519,1768584638915,-570.06,0.00019989,2]
[402193520,1768584638924,-570.06,0.00019989,2]
[402193521,1768584638934,-570.06,0.00019989,2]
[402193522,1768584638943,-570.06,0.00019989,2]
[402193523,1768584638953,-248.0,0.0002,3]
[402193524,1768584638962,-500.0,0.0002,2]
[402193525,1768584638971,-243.0,0.000202,120]
[402193526,1768584638981,-162.0,0.000202,120]
[402193527,1768584638991,-1134.39338545,0.00020298,2]
[402193528,1768584639000,-656.0,0.00020306,120]
[402193529,1768584639010,-394.0,0.00020306,120]
[402193530,1768584639019,-236.0,0.00020306,120]
[402193531,1768584639029,-570.06,0.00020361,2]
[402193532,1768584639040,-570.06,0.00020361,2]
[402193533,1768584639050,-570.06,0.00020362,2]
[402193534,1768584639060,-285904.90255822,0.00020398,2]
[402193535,1768584639077,-16998.9147903,0.00020398,2]
[402193536,1768584639087,-1528.83968753,0.00020398,2]
[402193537,1768584639098,-1077.62458,0.00020398,2]
[402193538,1768584639108,-1077.62458,0.00020398,2]
[402193539,1768584639118,-1077.62458,0.00020398,2]
[402193540,1768584639128,-1077.62458,0.00020398,2]
[402193541,1768584639138,-2312.83697232,0.00020408,2]
[402193542,1768584639148,-151.0,0.00020628,2]
[402193543,1768584639159,-1350.4115961,0.00020682,2]
[402193544,1768584639168,-3187.508808,0.00020682,2]
[402193545,1768584639178,-151.0,0.000208,4]
[402193546,1768584639187,-570.06,0.00020812,2]
[402193547,1768584639196,-730.09362971,0.00020883,2]
[402193548,1768584639206,-616.2138576,0.00020883,2]
[402193549,1768584639216,-36358.59273221,0.000209,2]
[402193578,1768584646036,-302.0,0.00018198,2]
[402193919,1768585256071,199.3,8.139e-05,2]
[402193920,1768585256501,249.13,8.72e-05,2]
[402193939,1768585327550,176.47,7.536e-05,2]
[402193941,1768585327965,220.59,8.074e-05,2]
[402193942,1768585328383,264.71,8.613e-05,2]
[402193968,1768585398783,178.48,8.073e-05,2]
[402193969,1768585399193,214.17,8.611e-05,2]
[402193973,1768585429706,-798.55201879,9.058e-05,2]
[402193974,1768585432169,-202.96,9.058e-05,2]
[402193978,1768585436859,-285.72550606,9.058e-05,2]
[402193979,1768585438786,-174.85066577,9.058e-05,2]
[402193980,1768585440826,-201.04734198,9.058e-05,2]
[402193981,1768585443895,-403.45494146,9.058e-05,2]
[402193982,1768585448927,-261.97235303,9.058e-05,2]
[402193983,1768585452196,-288.78131834,9.058e-05,2]
[402193984,1768585454234,-206.78,9.058e-05,2]
[402194118,1768585837881,-221.45175723,9.543e-05,2]
[402194119,1768585837895,-554.0,9.543e-05,2]
[402194120,1768585837904,-261.31307353,0.00011543,2]
[402194121,1768585837915,-158.86,0.00011834,2]
[402194122,1768585837926,-198.58,0.0001268,2]
[402194123,1768585837935,-300.0,0.00013271,2]
[402194124,1768585837945,-300.0,0.00013271,2]
[402194125,1768585837955,-500.0,0.00013273,2]
[402194126,1768585837967,-500.0,0.00013273,2]
[402194127,1768585837977,-643.88420735,0.00013273,2]
[402194128,1768585837988,-500.0,0.00013273,2]
[402194129,1768585837998,-18384.48148059,0.00013273,2]
[402194130,1768585838012,-1526.85409159,0.00013273,2]
[402194131,1768585838027,-8831.5508265,0.00013273,2]
[402194132,1768585838040,-8527.30908481,0.00013273,2]
[402194133,1768585838052,-2522.19948088,0.00013273,2]
[402194135,1768585840194,-3e-08,0.00013273,2]
[402194136,1768585840205,-2073.09761353,0.00013273,2]
[402194278,1768585842995,-227.44705611,0.00010543,2]
[402194280,1768585843005,-268.38752621,0.00012543,2]
[402194282,1768585843014,-3196.12800765,0.00013273,2]
[402194613,1768585846299,-3631.21000292,0.00013273,2]
[402194615,1768585846308,-238.29,0.00013525,2]
[402194616,1768585846317,-500.0,0.00013698,2]
[402194618,1768585846326,-500.0,0.00013698,2]
[402194621,1768585846336,-500.0,0.00013698,2]
[402194623,1768585846345,-500.0,0.00013699,2]
[402194625,1768585846355,-500.0,0.00013699,2]
[402194627,1768585846365,-500.0,0.0001382,2]
[402194629,1768585846374,-1000.0,0.00013821,2]
[402194630,1768585846383,-1000.0,0.00013821,2]
[402194632,1768585846392,-574.08865466,0.00013821,2]
[402194634,1768585846402,-162.489039,0.00014033,2]
[402194636,1768585846411,-500.0,0.00014246,2]
[402194638,1768585846420,-192.93732994,0.00014247,2]
[402194640,1768585846429,-500.0,0.00014247,2]
[402194642,1768585846439,-236.33175676,0.00014247,2]
[402194644,1768585846448,-1185.31314843,0.00014368,2]
[402194646,1768585846457,-199.29246469,0.00014368,2]
[402194650,1768585846497,-453.0,0.00014368,2]
[402194887,1768586105855,160.67,8.248e-05,2]
[402194888,1768586106269,192.8,8.798e-05,2]
[402195074,1768586880356,217.97,9.99e-06,2]
[402195114,1768587032025,-424.98544263,9.623e-05,2]
[402195116,1768587032036,-130.01455737,9.623e-05,2]
[402195118,1768587032045,-251.42088333,9.97e-05,2]
[402195120,1768587032055,-296.67664233,0.0001197,2]
[402195122,1768587032064,-153.07,0.00012834,2]
[402195124,1768587032073,-131.72275439,0.00012962,2]
[402195127,1768587032083,-1249.50691396,0.00012962,2]
[402195129,1768587032098,-843.43653506,0.00012962,2]
[402195164,1768587032374,-514.69717787,0.00012962,2]
[402195240,1768587038078,-8839.76437372,0.00012962,2]
[402195242,1768587038088,-930.7616984,0.00012977,2]
[402195244,1768587038097,-158.696719,0.00013142,2]
[402195246,1768587038107,-1152.2154234,0.00013684,2]
[402195248,1768587038117,-183.68,0.00013689,2]
[402195250,1768587038126,-6672.28049239,0.0001397,2]
[402195252,1768587038136,-341.93240133,0.0001397,2]
[402195254,1768587038145,-1000.0,0.00014313,2]
[402195255,1768587038154,-300.0,0.00014367,2]
[402195257,1768587038164,-1200.0,0.00014367,2]
[402195259,1768587038173,-502.82609084,0.00014368,2]
[402195261,1768587038183,-500.0,0.00014368,2]
[402195263,1768587038192,-1626.75,0.00014368,2]
[402195266,1768587038201,-214.29,0.00014545,2]
[402195268,1768587038213,-500.0,0.00014715,2]
[402195270,1768587038223,-500.0,0.00014852,2]
[402195272,1768587038232,-500.0,0.00014988,2]
[402195274,1768587038241,-500.0,0.00014988,2]
[402195276,1768587038250,-500.0,0.00014988,2]
[402195277,1768587038261,-500.0,0.00014988,2]
[402195279,1768587038271,-500.0,0.00014988,2]
[402195281,1768587038280,-500.0,0.00014988,2]
[402195283,1768587038289,-500.0,0.00014988,2]
[402195285,1768587038299,-500.0,0.00014988,2]
[402195287,1768587038307,-500.0,0.00014988,2]
[402195289,1768587038316,-500.0,0.00014988,2]
[402195291,1768587038326,-500.0,0.00014988,2]
[402195293,1768587038335,-500.0,0.00014988,2]
[402195295,1768587038344,-500.0,0.00014988,2]
[402195297,1768587038353,-231.15084793,0.00014988,2]
[402195299,1768587038362,-391.24281475,0.00014988,2]
[402195301,1768587038371,-500.0,0.00014988,2]
[402195303,1768587038380,-500.0,0.00014988,2]
[402195305,1768587038389,-500.0,0.00014988,2]
[402195307,1768587038398,-500.0,0.00014988,2]
[402195308,1768587038407,-500.0,0.00014988,2]
[402195310,1768587038416,-500.0,0.00014988,2]
[402195312,1768587038425,-500.0,0.00014988,2]
[402195314,1768587038434,-500.0,0.00014988,2]
[402195316,1768587038443,-500.0,0.00014988,2]
[402195318,1768587038452,-500.0,0.00014988,2]
[402195320,1768587038462,-500.0,0.00014988,2]
[402195322,1768587038472,-500.0,0.00014988,2]
[402195324,1768587038480,-489.95055912,0.00014988,2]
[402195326,1768587038490,-500.0,0.00014988,2]
[402195328,1768587038499,-500.0,0.00014988,2]
[402195330,1768587038509,-500.0,0.00014988,2]
[402195332,1768587038518,-500.0,0.00014988,2]
[402195334,1768587038528,-500.0,0.00014988,2]
[402195336,1768587038537,-500.0,0.00014988,2]
[402195338,1768587038547,-500.0,0.00014988,2]
[402195340,1768587038556,-500.0,0.00014988,2]
[402195342,1768587038565,-500.0,0.00014988,2]
[402195344,1768587038574,-500.0,0.00014988,2]
[402195346,1768587038583,-500.0,0.00014988,2]
[402195347,1768587038592,-500.0,0.00014988,2]
[402195349,1768587038601,-500.0,0.00014988,2]
[402195351,1768587038610,-500.0,0.00014988,2]
[402195353,1768587038619,-500.0,0.00014988,2]
[402195355,1768587038628,-500.0,0.00014988,2]
[402195357,1768587038637,-500.0,0.00014988,2]
[402195359,1768587038647,-500.0,0.00014988,2]
[402195361,1768587038656,-500.0,0.00014988,2]
[402195363,1768587038665,-500.0,0.00014988,2]
[402195365,1768587038674,-500.0,0.00014988,2]
[402195367,1768587038683,-500.0,0.00014988,2]
[402195369,1768587038692,-500.0,0.00014988,2]
[402195371,1768587038701,-500.0,0.00014988,2]
[402195373,1768587038711,-500.0,0.00014988,2]
[402195375,1768587038720,-500.0,0.00014988,2]
[402195377,1768587038729,-500.0,0.00014988,2]
[402195379,1768587038738,-500.0,0.00014988,2]
[402195381,1768587038748,-500.0,0.00014988,2]
[402195382,1768587038757,-500.0,0.00014988,2]
[402195384,1768587038767,-500.0,0.00014988,2]
[402195386,1768587038776,-500.0,0.00014988,2]
[402195388,1768587038785,-500.0,0.00014988,2]
[402195390,1768587038795,-500.0,0.00014988,2]
[402195392,1768587038804,-500.0,0.00014988,2]
[402195394,1768587038814,-500.0,0.00014988,2]
[402195395,1768587038823,-500.0,0.00014988,2]
[402195397,1768587038832,-285.13347503,0.00014988,2]
[402195399,1768587038841,-500.0,0.00014988,2]
[402195401,1768587038850,-500.0,0.00014988,2]
[402195403,1768587038860,-500.0,0.00014988,2]
[402195405,1768587038869,-500.0,0.00014988,2]
[402195407,1768587038879,-500.0,0.00014988,2]
[402195409,1768587038889,-500.0,0.00014988,2]
[402195411,1768587038899,-500.0,0.00014988,2]
[402195413,1768587038909,-500.0,0.00014988,2]
[402195415,1768587038920,-500.0,0.00014988,2]
[402195417,1768587038929,-500.0,0.00014988,2]
[402195418,1768587038939,-500.0,0.00014988,2]
[402195419,1768587038950,-500.0,0.00014988,2]
[402195420,1768587038961,-500.0,0.00014988,2]
[402195422,1768587038970,-500.0,0.00014988,2]
[402195424,1768587038980,-500.0,0.00014988,2]
[402195426,1768587038990,-500.0,0.00014988,2]
[402195428,1768587039000,-500.0,0.00014988,2]
[402195430,1768587039010,-500.0,0.00014988,2]
[402195432,1768587039019,-500.0,0.00014988,2]
[402195434,1768587039029,-500.0,0.00014988,2]
[402195436,1768587039039,-500.0,0.00014988,2]
[402195438,1768587039049,-500.0,0.00014988,2]
[402195440,1768587039059,-473.09999169,0.00014988,2]
[402195442,1768587039069,-500.0,0.00014988,2]
[402195444,1768587039078,-505.24228267,0.00014988,2]
[402195446,1768587039088,-500.0,0.00014988,2]
[402195448,1768587039098,-500.0,0.00014988,2]
[402195450,1768587039108,-500.0,0.00014988,2]
[402195452,1768587039117,-500.0,0.00014988,2]
[402195453,1768587039127,-500.0,0.00014988,2]
[402195455,1768587039137,-500.0,0.00014988,2]
[402195458,1768587039146,-500.0,0.00014988,2]
[402195459,1768587039156,-500.0,0.00014988,2]
[402195486,1768587039403,-500.0,0.00014988,2]
[402195489,1768587039415,-500.0,0.00014988,2]
[402195490,1768587039424,-500.0,0.00014988,2]
[402195492,1768587039434,-500.0,0.00014988,2]
[402195494,1768587039443,-500.0,0.00014988,2]
[402195496,1768587039452,-500.0,0.00014988,2]
[402195498,1768587039461,-500.0,0.00014988,2]
[402195500,1768587039471,-500.0,0.00014988,2]
[402195502,1768587039481,-500.0,0.00014988,2]
[402195504,1768587039490,-367.78684247,0.00014988,2]
[402195505,1768587039499,-500.0,0.00014988,2]
[402195506,1768587039508,-500.0,0.00014988,2]
[402195507,1768587039517,-500.0,0.00014988,2]
[402195508,1768587039526,-500.0,0.00014988,2]
[402195509,1768587039536,-500.0,0.00014988,2]
[402195510,1768587039545,-500.0,0.00014988,2]
[402195511,1768587039555,-500.0,0.00014988,2]
[402195513,1768587039564,-500.0,0.00014988,2]
[402195514,1768587039573,-500.0,0.00014988,2]
[402195515,1768587039582,-500.0,0.00014988,2]
[402195516,1768587039591,-500.0,0.00014988,2]
[402195517,1768587039600,-500.0,0.00014988,2]
[402195519,1768587039609,-500.0,0.00014988,2]
[402195522,1768587039618,-500.0,0.00014988,2]
[402195524,1768587039627,-500.0,0.00014988,2]
[402195526,1768587039636,-219.33725302,0.00014988,2]
[402195528,1768587039645,-500.0,0.00014988,2]
[402195530,1768587039654,-500.0,0.00014988,2]
[402195532,1768587039663,-500.0,0.00014988,2]
[402195535,1768587039671,-500.0,0.00014988,2]
[402195537,1768587039679,-500.0,0.00014988,2]
[402195539,1768587039688,-500.0,0.00014988,2]
[402195541,1768587039696,-500.0,0.00014988,2]
[402195543,1768587039704,-500.0,0.00014988,2]
[402195545,1768587039714,-500.0,0.00014988,2]
[402195547,1768587039723,-500.0,0.00014988,2]
[402195549,1768587039732,-519.41228966,0.00014988,2]
[402195550,1768587039741,-500.0,0.00014988,2]
[402195552,1768587039749,-500.0,0.00014988,2]
[402195554,1768587039757,-500.0,0.00014988,2]
[402195556,1768587039766,-500.0,0.00014988,2]
[402195558,1768587039776,-500.0,0.00014988,2]
[402195560,1768587039784,-519.41228966,0.00014988,2]
[402195562,1768587039793,-500.0,0.00014988,2]
[402195564,1768587039802,-500.0,0.00014988,2]
[402195566,1768587039811,-519.41228966,0.00014988,2]
[402195568,1768587039820,-500.0,0.00014988,2]
[402195571,1768587039829,-500.0,0.00014988,2]
[402195573,1768587039838,-519.41228966,0.00014988,2]
[402195575,1768587039847,-500.0,0.00014988,2]
[402195577,1768587039856,-500.0,0.00014988,2]
[402195579,1768587039865,-500.0,0.00014988,2]
[402195581,1768587039874,-519.41228966,0.00014988,2]
[402195583,1768587039882,-500.0,0.00014988,2]
[402195585,1768587039891,-500.0,0.00014988,2]
[402195587,1768587039899,-519.41228966,0.00014988,2]
[402195589,1768587039908,-500.0,0.00014988,2]
[402195591,1768587039917,-500.0,0.00014988,2]
[402195593,1768587039926,-500.0,0.00014988,2]
[402195595,1768587039935,-500.0,0.00014988,2]
[402195598,1768587039944,-519.41228966,0.00014988,2]
[402195600,1768587039953,-500.0,0.00014988,2]
[402195602,1768587039963,-500.0,0.00014988,2]
[402195604,1768587039972,-519.41228966,0.00014988,2]
[402195606,1768587039981,-500.0,0.00014988,2]
[402195607,1768587039990,-500.0,0.00014988,2]
[402195609,1768587039999,-519.41228966,0.00014988,2]
[402195611,1768587040008,-500.0,0.00014988,2]
[402195613,1768587040017,-500.0,0.00014988,2]
[402195615,1768587040026,-519.41228966,0.00014988,2]
[402195617,1768587040036,-500.0,0.00014988,2]
[402195619,1768587040045,-500.0,0.00014988,2]
[402195621,1768587040055,-519.41228966,0.00014988,2]
[402195623,1768587040064,-500.0,0.00014988,2]
[402195625,1768587040074,-500.0,0.00014988,2]
[402195627,1768587040084,-519.41228966,0.00014988,2]
[402195629,1768587040093,-500.0,0.00014988,2]
[402195631,1768587040102,-500.0,0.00014988,2]
[402195633,1768587040112,-500.0,0.00014988,2]
[402195636,1768587040122,-519.41228966,0.00014988,2]
[402195637,1768587040132,-500.0,0.00014988,2]
[402195639,1768587040141,-500.0,0.00014988,2]
[402195641,1768587040150,-519.41228966,0.00014988,2]
[402195643,1768587040160,-500.0,0.00014988,2]
[402195645,1768587040169,-500.0,0.00014988,2]